fUSD/lending_fUSD_20250112
["ID","MTS","AMOUNT","RATE_DAILY","PERIOD"]
[348656701,1736700660210,-500.0,0.00010095,2]
[348656702,1736700660220,-500.0,0.00010095,2]
[348656703,1736700660230,-500.0,0.00010095,2]
[348656704,1736700660241,-500.0,0.00010095,2]
[348656705,1736700660252,-500.0,0.00010095,2]
[348656706,1736700660262,-3861.07,0.00010095,2]
[348656707,1736700660272,-941.388041,0.00010095,2]
[348656708,1736700660282,-500.0,0.00010095,2]
[348656709,1736700660291,-944.82,0.00010095,2]
[348656710,1736700660301,-500.0,0.00010095,2]
[348656711,1736700660310,-1010.28,0.00010095,2]
[348656712,1736700660320,-500.0,0.00010095,2]
[348656713,1736700660329,-597.28,0.00010095,2]
[348656714,1736700660338,-500.0,0.00010095,2]
[348656715,1736700660348,-500.0,0.00010095,2]
[348656716,1736700660357,-978.99,0.00010095,2]
[348656717,1736700660366,-574.1,0.00010095,2]
[348656718,1736700660375,-500.0,0.00010095,2]
[348656719,1736700660384,-500.0,0.00010095,2]
[348656720,1736700660394,-500.0,0.00010095,2]
[348656721,1736700660404,-500.0,0.00010095,2]
[348656722,1736700660413,-500.0,0.00010095,2]
[348656723,1736700660422,-241.84731285,0.00010095,2]
[348656724,1736700660432,-790.29,0.00010095,2]
[348656725,1736700660442,-500.0,0.00010095,2]
[348656726,1736700660451,-500.0,0.00010095,2]
[348656727,1736700660461,-500.0,0.00010095,2]
[348656728,1736700660470,-826.32,0.00010095,2]
[348656729,1736700660479,-816.75,0.00010095,2]
[348656730,1736700660489,-500.0,0.00010095,2]
[348656731,1736700660498,-500.0,0.00010095,2]
[348656732,1736700660507,-625.83,0.00010095,2]
[348656733,1736700660517,-655.22,0.00010095,2]
[348656734,1736700660526,-500.0,0.00010095,2]
[348656735,1736700660535,-500.0,0.00010095,2]
[348656736,1736700660544,-500.0,0.00010095,2]
[348656737,1736700660553,-3719.64,0.00010095,2]
[348656738,1736700660562,-659.3,0.00010095,2]
[348656739,1736700660572,-500.0,0.00010095,2]
[348656740,1736700660581,-500.0,0.00010095,2]
[348656741,1736700660591,-500.0,0.00010095,2]
[348656742,1736700660600,-500.0,0.00010095,2]
[348656743,1736700660610,-500.0,0.00010095,2]
[348656744,1736700660619,-516.68,0.00010095,2]
[348656745,1736700660628,-500.0,0.00010095,2]
[348656746,1736700660637,-500.0,0.00010095,2]
[348656747,1736700660647,-500.0,0.00010095,2]
[348656748,1736700660655,-610.16,0.00010095,2]
[348656749,1736700660664,-500.0,0.00010095,2]
[348656750,1736700660673,-500.0,0.00010095,2]
[348656751,1736700660683,-544.28,0.00010095,2]
[348656752,1736700660694,-500.0,0.00010095,2]
[348656753,1736700660704,-1214.34,0.00010095,2]
[348656754,1736700660713,-553.68,0.00010095,2]
[348656755,1736700660723,-815.64,0.00010095,2]
[348656756,1736700660732,-684.62,0.00010095,2]
[348656757,1736700660741,-253.35853558,0.00010095,2]
[348656758,1736700660750,-500.0,0.00010095,2]
[348656759,1736700660759,-932.52,0.00010095,2]
[348656760,1736700660768,-500.0,0.00010095,2]
[348656761,1736700660778,-500.0,0.00010095,2]
[348656762,1736700660787,-625.7,0.00010095,2]
[348656763,1736700660796,-500.0,0.00010095,2]
[348656764,1736700660805,-721.16,0.00010095,2]
[348656765,1736700660815,-797.42,0.00010095,2]
[348656766,1736700660824,-617.87,0.00010095,2]
[348656767,1736700660833,-500.0,0.00010095,2]
[348656768,1736700660843,-500.0,0.00010095,2]
[348656769,1736700660852,-779.4,0.00010095,2]
[348656770,1736700660861,-500.0,0.00010095,2]
[348656771,1736700660871,-500.0,0.00010095,2]
[348656772,1736700660880,-500.0,0.00010095,2]
[348656773,1736700660889,-756.66,0.00010095,2]
[348656774,1736700660899,-571.61249942,0.00010095,2]
[348656775,1736700660908,-500.0,0.00010095,2]
[348656776,1736700660917,-445.92205339,0.00010095,2]
[348656777,1736700660939,-81.43794661,0.00010095,2]
[348656778,1736700660949,-291.29205329,0.00010095,2]
[348656779,1736700660961,-208.70794671,0.00010095,2]
[348656780,1736700660970,-45.26205329,0.00010095,2]
[348656781,1736700660982,-374.11,0.00010095,2]
[348656782,1736700660993,-147.45794671,0.00010095,2]
[348656783,1736700661004,-189.15205329,0.00010095,2]
[348656784,1736700661016,-310.84794671,0.00010095,2]
[348656785,1736700661025,-92.78205329,0.00010095,2]
[348656786,1736700661037,-251.24,0.00010095,2]
[348656787,1736700661048,-155.97794671,0.00010095,2]
[348656788,1736700661058,-362.44605329,0.00010095,2]
[348656789,1736700661069,-145.21394671,0.00010095,2]
[348656790,1736700661078,-187.74905219,0.00010095,2]
[348656791,1736700661089,-312.25094781,0.00010095,2]
[348656792,1736700661099,-57.26405219,0.00010095,2]
[348656793,1736700661110,-277.209,0.00010095,2]
[348656794,1736700661123,-340.39927,0.00010095,2]
[348656795,1736700661145,-473.29767781,0.00010095,2]
[348656796,1736700661154,-74.71184795,0.00010095,2]
[348656797,1736700661174,-425.28815205,0.00010095,2]
[348656798,1736700661183,-697.58,0.00010095,2]
[348656799,1736700661194,-500.0,0.00010095,2]
[348656800,1736700661204,-500.0,0.00010095,2]
[348656801,1736700661213,-640.34,0.00010095,2]
[348656802,1736700661223,-1565.32,0.00010095,2]
[348656803,1736700661232,-500.0,0.00010095,2]
[348656804,1736700661242,-500.0,0.00010095,2]
[348656805,1736700661253,-641.6,0.00010095,2]
[348656806,1736700661263,-500.0,0.00010095,2]
[348656807,1736700661272,-500.0,0.00010095,2]
[348656808,1736700661281,-673.33,0.00010095,2]
[348656809,1736700661290,-500.0,0.00010095,2]
[348656810,1736700661300,-1691.98,0.00010095,2]
[348656811,1736700661309,-500.0,0.00010095,2]
[348656812,1736700661318,-844.22,0.00010095,2]
[348656813,1736700661327,-995.13,0.00010095,2]
[348656814,1736700661337,-500.0,0.00010095,2]
[348656815,1736700661346,-500.0,0.00010095,2]
[348656816,1736700661356,-503.65964742,0.00010095,2]
[348656817,1736700661367,-500.0,0.00010095,2]
[348656818,1736700661376,-500.0,0.00010095,2]
[348656819,1736700661386,-1416.54,0.00010095,2]
[348656820,1736700661395,-500.0,0.00010095,2]
[348656821,1736700661405,-500.0,0.00010095,2]
[348656822,1736700661414,-500.0,0.00010095,2]
[348656823,1736700661424,-500.0,0.00010095,2]
[348656824,1736700661433,-500.0,0.00010095,2]
[348656825,1736700661443,-123.35999306,0.00010095,2]
[348656826,1736700661460,-297.04429955,0.00010095,2]
[348656827,1736700661471,-79.59570739,0.00010095,2]
[348656828,1736700661480,-609.49,0.00010095,2]
[348656829,1736700661490,-170.36864044,0.00010095,2]
[348656830,1736700661499,-535.32,0.00010095,2]
[348656831,1736700661508,-1156.26,0.00010095,2]
[348656832,1736700661518,-3288.63,0.00010095,2]
[348656833,1736700661527,-500.0,0.00010095,2]
[348656834,1736700661537,-500.0,0.00010095,2]
[348656835,1736700661546,-951.77,0.00010095,2]
[348656836,1736700661555,-500.0,0.00010095,2]
[348656837,1736700661564,-1332.25,0.00010095,2]
[348656838,1736700661573,-500.0,0.00010095,2]
[348656839,1736700661583,-1266.62,0.00010095,2]
[348656840,1736700661592,-1123.73,0.00010095,2]
[348656841,1736700661601,-402.42553196,0.00010095,2]
[348656842,1736700661609,-500.0,0.00010095,2]
[348656843,1736700661618,-538.54,0.00010095,2]
[348656844,1736700661628,-500.0,0.00010095,2]
[348656845,1736700661637,-500.0,0.00010095,2]
[348656846,1736700661646,-649.23,0.00010095,2]
[348656847,1736700661655,-332.30185545,0.00010095,2]
[348656848,1736700661664,-3743.22,0.00010095,2]
[348656849,1736700661674,-314.09529832,0.00010095,2]
[348656850,1736700661683,-500.0,0.00010095,2]
[348656851,1736700661693,-500.0,0.00010095,2]
[348656852,1736700661703,-681.51,0.00010095,2]
[348656853,1736700661713,-500.0,0.00010095,2]
[348656854,1736700661722,-4103.02,0.00010095,2]
[348656855,1736700661732,-500.0,0.00010095,2]
[348656856,1736700661741,-500.0,0.00010095,2]
[348656857,1736700661750,-527.25,0.00010095,2]
[348656858,1736700661760,-500.0,0.00010095,2]
[348656859,1736700661770,-500.0,0.00010095,2]
[348656860,1736700661779,-471.88510722,0.00010095,2]
[348656861,1736700661793,-40.85256247,0.00010095,2]
[348656862,1736700661803,-470.03777183,0.00010095,2]
[348656863,1736700661814,-369.94222817,0.00010095,2]
[348656864,1736700661824,-500.0,0.00010095,2]
[348656865,1736700661833,-590.01,0.00010095,2]
[348656866,1736700661844,-312.89716398,0.00010095,2]
[348656867,1736700661855,-187.10283602,0.00010095,2]
[348656868,1736700661865,-500.0,0.00010095,2]
[348656869,1736700661875,-3566.43,0.00010095,2]
[348656870,1736700661885,-500.0,0.00010095,2]
[348656871,1736700661895,-2261.67,0.00010095,2]
[348656872,1736700661904,-500.0,0.00010095,2]
[348656873,1736700661914,-932.25,0.00010095,2]
[348656874,1736700661924,-589.70700499,0.00010095,2]
[348656875,1736700661933,-500.0,0.00010095,2]
[348656876,1736700661943,-500.0,0.00010095,2]
[348656877,1736700661954,-250.0,0.000101,2]
[348656878,1736700661963,-250.0,0.000101,2]
[348656879,1736700661977,-250.0,0.000101,2]
[348656880,1736700661987,-250.0,0.000101,2]
[348656881,1736700661996,-250.0,0.000101,2]
[348656882,1736700662006,-250.0,0.000101,2]
[348656883,1736700662016,-250.0,0.000101,2]
[348656884,1736700662026,-250.0,0.000101,2]
[348656885,1736700662035,-250.0,0.000101,2]
[348656886,1736700662045,-250.0,0.000101,2]
[348656887,1736700662055,-250.0,0.000101,2]
[348656888,1736700662065,-250.0,0.000101,2]
[348656889,1736700662075,-250.0,0.000101,2]
[348656890,1736700662084,-250.0,0.000101,2]
[348656891,1736700662094,-250.0,0.000101,2]
[348656892,1736700662104,-250.0,0.000101,2]
[348656893,1736700662116,-50.56197126,0.000101,2]
[348656894,1736700662131,-199.43802874,0.000101,2]
[348656895,1736700662140,-250.0,0.000101,2]
[348656896,1736700662150,-250.0,0.000101,2]
[348656897,1736700662160,-221.39970266,0.000101,2]
[348656898,1736700662172,-28.60029734,0.000101,2]
[348656899,1736700662182,-250.0,0.000101,2]
[348656900,1736700662191,-42.63770266,0.000101,2]
[348656901,1736700662204,-207.36229734,0.000101,2]
[348656902,1736700662215,-250.0,0.000101,2]
[348656903,1736700662225,-250.0,0.000101,2]
[348656904,1736700662235,-250.0,0.000101,2]
[348656905,1736700662246,-250.0,0.000101,2]
[348656906,1736700662256,-30000.0,0.00010129,2]
[348656907,1736700662266,-152.16,0.00010137,2]
[348656908,1736700662276,-750.02,0.00010157,2]
[348656909,1736700662286,-802.17,0.00010157,2]
[348656910,1736700662296,-500.0,0.00010157,2]
[348656911,1736700662306,-500.0,0.00010157,2]
[348656912,1736700662316,-534.42,0.00010157,2]
[348656913,1736700662326,-519.7,0.00010157,2]
[348656914,1736700662336,-500.0,0.00010157,2]
[348656915,1736700662345,-871.26,0.00010157,2]
[348656916,1736700662355,-500.0,0.00010157,2]
[348656917,1736700662365,-500.0,0.00010157,2]
[348656918,1736700662375,-500.0,0.00010157,2]
[348656919,1736700662385,-500.0,0.00010157,2]
[348656920,1736700662394,-500.0,0.00010157,2]
[348656921,1736700662404,-854.85,0.00010157,2]
[348656922,1736700662414,-500.0,0.00010157,2]
[348656923,1736700662424,-500.0,0.00010157,2]
[348656924,1736700662434,-835.94,0.00010157,2]
[348656925,1736700662444,-714.45,0.00010157,2]
[348656926,1736700662455,-588.61,0.00010157,2]
[348656927,1736700662465,-652.98,0.00010157,2]
[348656928,1736700662475,-549.09,0.00010157,2]
[348656929,1736700662485,-500.0,0.00010157,2]
[348656930,1736700662494,-4943.86,0.00010157,2]
[348656931,1736700662504,-688.45,0.00010157,2]
[348656932,1736700662515,-3443.63,0.00010157,2]
[348656933,1736700662525,-710.84,0.00010157,2]
[348656934,1736700662534,-500.0,0.00010157,2]
[348656935,1736700662544,-1074.26,0.00010157,2]
[348656936,1736700662554,-3653.37,0.00010157,2]
[348656937,1736700662564,-880.69,0.00010157,2]
[348656938,1736700662574,-896.33,0.00010157,2]
[348656939,1736700662583,-1087.03,0.00010157,2]
[348656940,1736700662593,-5552.47224807,0.00010162,4]
[348656941,1736700662602,-2594.78984519,0.0001021,2]
[348656942,1736700662612,-990.02671162,0.00010219,2]
[348656943,1736700662622,-500.0,0.00010344,2]
[348656944,1736700662631,-1647.89,0.00010344,2]
[348656945,1736700662641,-1216.98,0.00010344,2]
[348656946,1736700662650,-1642.15,0.00010344,2]
[348656947,1736700662660,-1552.57,0.00010344,2]
[348656948,1736700662670,-2412.19,0.00010344,2]
[348656949,1736700662680,-1676.33,0.00010344,2]
[348656950,1736700662690,-2594.78984519,0.00010345,2]
[348656951,1736700662700,-612.31,0.00010345,2]
[348656952,1736700662710,-769.55,0.00010345,2]
[348656953,1736700662721,-851.37,0.00010345,2]
[348656954,1736700662731,-500.0,0.00010345,2]
[348656955,1736700662740,-805.83,0.00010345,2]
[348656956,1736700662750,-710.15,0.00010345,2]
[348656957,1736700662760,-571.57,0.00010345,2]
[348656958,1736700662770,-863.48,0.00010345,2]
[348656959,1736700662779,-500.0,0.00010345,2]
[348656960,1736700662790,-500.0,0.00010345,2]
[348656961,1736700662799,-564.88,0.00010345,2]
[348656962,1736700662809,-500.0,0.00010345,2]
[348656963,1736700662819,-1134.97,0.00010345,2]
[348656964,1736700662829,-719.69,0.00010345,2]
[348656965,1736700662839,-1035.91,0.00010345,2]
[348656966,1736700662849,-500.0,0.00010345,2]
[348656967,1736700662858,-1188.05,0.00010345,2]
[348656968,1736700662868,-500.0,0.00010345,2]
[348656969,1736700662877,-500.0,0.00010345,2]
[348656970,1736700662887,-500.0,0.00010345,2]
[348656971,1736700662896,-826.63,0.00010345,2]
[348656972,1736700662906,-500.0,0.00010345,2]
[348656973,1736700662916,-500.0,0.00010345,2]
[348656974,1736700662926,-500.0,0.00010345,2]
[348656975,1736700662936,-500.0,0.00010345,2]
[348656976,1736700662946,-1332.99,0.00010345,2]
[348656977,1736700662957,-2129.44,0.00010345,2]
[348656978,1736700662967,-8570.07,0.00010345,2]
[348656979,1736700662977,-1803.19,0.00010345,2]
[348656980,1736700662988,-921.13,0.00010345,2]
[348656981,1736700662998,-3426.96,0.00010345,2]
[348656982,1736700663008,-5530.95,0.00010345,2]
[348656983,1736700663019,-961.2,0.00010345,2]
[348656984,1736700663029,-2395.68,0.00010345,2]
[348656985,1736700663040,-500.0,0.00010346,2]
[348656986,1736700663050,-1057.87,0.00010346,2]
[348656987,1736700663060,-1317.16,0.00010346,2]
[348656988,1736700663071,-2340.15,0.00010346,2]
[348656989,1736700663082,-765.83,0.00010346,2]
[348656990,1736700663092,-513.07956152,0.00010346,2]
[348656991,1736700663102,-1000.0,0.00010346,2]
[348656992,1736700663113,-1163.11,0.00010346,2]
[348656993,1736700663128,-500.0,0.00010346,2]
[348656994,1736700663138,-2753.59,0.00010346,2]
[348656995,1736700663158,-1853.45,0.00010346,2]
[348656996,1736700663180,-738.81,0.00010368,2]
[348656997,1736700663201,-500.0,0.00010368,2]
[348656998,1736700663223,-999.9,0.00010368,2]
[348656999,1736700663246,-658.7,0.00010368,2]
[348657000,1736700663268,-852.49,0.00010368,2]
[348657001,1736700663289,-563.58,0.00010368,2]
[348657002,1736700663310,-500.0,0.00010368,2]
[348657003,1736700663333,-590.5326702,0.00010368,2]
[348657004,1736700663355,-500.0,0.00010368,2]
[348657005,1736700663377,-690.64,0.00010368,2]
[348657006,1736700663400,-500.0,0.00010368,2]
[348657007,1736700663422,-857.17,0.00010368,2]
[348657008,1736700663438,-674.27,0.00010368,2]
[348657009,1736700663449,-500.0,0.00010368,2]
[348657010,1736700663460,-999.58,0.00010368,2]
[348657011,1736700663470,-500.0,0.00010368,2]
[348657012,1736700663480,-690.05,0.00010368,2]
[348657013,1736700663491,-833.44,0.00010368,2]
[348657014,1736700663501,-500.0,0.00010368,2]
[348657015,1736700663511,-988.81,0.00010368,2]
[348657016,1736700663522,-668.15,0.00010368,2]
[348657017,1736700663531,-779.2,0.00010368,2]
[348657018,1736700663542,-500.0,0.00010368,2]
[348657019,1736700663552,-500.0,0.00010368,2]
[348657020,1736700663562,-1054.74,0.00010368,2]
[348657021,1736700663571,-500.0,0.00010368,2]
[348657022,1736700663582,-500.0,0.00010368,2]
[348657023,1736700663591,-748.93,0.00010368,2]
[348657024,1736700663602,-500.0,0.00010368,2]
[348657025,1736700663612,-500.0,0.00010368,2]
[348657026,1736700663622,-500.0,0.00010368,2]
[348657027,1736700663632,-922.61,0.00010368,2]
[348657028,1736700663642,-500.0,0.00010368,2]
[348657029,1736700663652,-500.0,0.00010368,2]
[348657030,1736700663662,-500.0,0.00010368,2]
[348657031,1736700663672,-584.82,0.00010368,2]
[348657032,1736700663682,-500.0,0.00010368,2]
[348657033,1736700663693,-893.62,0.00010368,2]
[348657034,1736700663705,-1058.98,0.00010368,2]
[348657035,1736700663715,-500.0,0.00010368,2]
[348657036,1736700663726,-2993.24,0.00010368,2]
[348657037,1736700663736,-500.0,0.00010368,2]
[348657038,1736700663746,-500.0,0.00010368,2]
[348657039,1736700663757,-1131.37,0.00010368,2]
[348657040,1736700663768,-2622.41,0.00010368,2]
[348657041,1736700663778,-500.0,0.00010368,2]
[348657042,1736700663789,-715.88,0.00010368,2]
[348657043,1736700663799,-8282.98,0.00010368,2]
[348657044,1736700663809,-838.98,0.00010368,2]
[348657045,1736700663820,-675.17,0.00010368,2]
[348657046,1736700663830,-776.6,0.00010368,2]
[348657047,1736700663841,-500.0,0.00010368,2]
[348657048,1736700663852,-903.59,0.00010368,2]
[348657049,1736700663862,-500.0,0.00010368,2]
[348657050,1736700663872,-1097.27,0.00010368,2]
[348657051,1736700663882,-612.54,0.00010368,2]
[348657052,1736700663892,-565.39,0.00010368,2]
[348657053,1736700663903,-2321.77,0.00010368,2]
[348657054,1736700663914,-1025.55,0.00010368,2]
[348657055,1736700663925,-500.0,0.00010368,2]
[348657056,1736700663935,-2541.58,0.00010368,2]
[348657057,1736700663944,-500.0,0.00010368,2]
[348657058,1736700663956,-995.77,0.00010368,2]
[348657059,1736700663967,-3146.03,0.00010368,2]
[348657060,1736700663977,-2710.65,0.00010368,2]
[348657061,1736700663987,-500.0,0.00010368,2]
[348657062,1736700663997,-1355.79,0.00010368,2]
[348657063,1736700664007,-2113.09,0.00010368,2]
[348657064,1736700664018,-1415.81,0.00010368,2]
[348657065,1736700664028,-1050.88,0.00010368,2]
[348657066,1736700664038,-520.74,0.00010368,2]
[348657067,1736700664048,-1033.91,0.00010368,2]
[348657068,1736700664058,-1645.06,0.00010368,2]
[348657069,1736700664068,-500.0,0.00010368,2]
[348657070,1736700664078,-1289.53,0.00010368,2]
[348657071,1736700664090,-836.1,0.00010368,2]
[348657072,1736700664100,-969.41,0.00010368,2]
[348657073,1736700664111,-500.0,0.00010368,2]
[348657074,1736700664126,-3093.34,0.00010368,2]
[348657075,1736700664137,-594.39,0.00010368,2]
[348657076,1736700664147,-2376.04,0.00010368,2]
[348657077,1736700664158,-856.24,0.00010368,2]
[348657078,1736700664425,-500.0,0.00010368,2]
[348657079,1736700664445,-524.5,0.00010368,2]
[348657080,1736700664456,-1899.09,0.00010368,2]
[348657081,1736700664466,-708.5,0.00010368,2]
[348657082,1736700664475,-1088.98,0.00010368,2]
[348657083,1736700664485,-500.0,0.00010368,2]
[348657084,1736700664495,-500.0,0.00010368,2]
[348657085,1736700664505,-1299.49,0.00010368,2]
[348657086,1736700664514,-640.31,0.00010368,2]
[348657087,1736700664524,-925.99,0.00010368,2]
[348657088,1736700664534,-622.45,0.00010368,2]
[348657089,1736700664543,-3185.36,0.00010368,2]
[348657090,1736700664553,-1827.76,0.00010368,2]
[348657091,1736700664563,-606.95,0.00010368,2]
[348657092,1736700664572,-545.89,0.00010368,2]
[348657093,1736700664581,-786.14,0.00010368,2]
[348657094,1736700664591,-833.22,0.00010368,2]
[348657095,1736700664600,-1861.57,0.00010368,2]
[348657096,1736700664610,-500.0,0.00010369,2]
[348657097,1736700664619,-500.0,0.00010369,2]
[348657098,1736700664628,-730.13,0.00010369,2]
[348657099,1736700664638,-500.0,0.00010369,2]
[348657100,1736700664648,-1651.99,0.00010369,2]
[348657101,1736700664657,-500.0,0.00010369,2]
[348657102,1736700664667,-1264.25,0.00010369,2]
[348657103,1736700664676,-978.875677,0.00010369,2]
[348657104,1736700664685,-500.0,0.00010369,2]
[348657105,1736700664694,-500.0,0.00010369,2]
[348657106,1736700664705,-450.51602345,0.00010369,2]
[348657107,1736700665014,-49.48397655,0.00010369,2]
[348657108,1736700665024,-159.485229,0.00010369,2]
[348657109,1736700665034,-500.0,0.00010369,2]
[348657110,1736700665044,-500.0,0.00010369,2]
[348657111,1736700665053,-3861.07,0.00010369,2]
[348657112,1736700665063,-941.388041,0.00010369,2]
[348657113,1736700665072,-500.0,0.00010369,2]
[348657114,1736700665082,-944.82,0.00010369,2]
[348657115,1736700665091,-500.0,0.00010369,2]
[348657116,1736700665100,-1010.28,0.00010369,2]
[348657117,1736700665109,-500.0,0.00010369,2]
[348657118,1736700665123,-597.28,0.00010369,2]
[348657119,1736700665132,-507.58185994,0.00010369,2]
[348657120,1736700665142,-500.0,0.00010369,2]
[348657121,1736700665151,-574.1,0.00010369,2]
[348657122,1736700665162,-978.99,0.00010369,2]
[348657123,1736700665171,-500.0,0.00010369,2]
[348657124,1736700665181,-500.0,0.00010369,2]
[348657125,1736700665191,-500.0,0.00010369,2]
[348657126,1736700665201,-500.0,0.00010369,2]
[348657127,1736700665211,-500.0,0.00010369,2]
[348657128,1736700665220,-790.29,0.00010369,2]
[348657129,1736700665230,-558.41101785,0.00010369,2]
[348657130,1736700665239,-500.0,0.00010369,2]
[348657131,1736700665249,-500.0,0.00010369,2]
[348657132,1736700665259,-826.32,0.00010369,2]
[348657133,1736700665269,-816.75,0.00010369,2]
[348657134,1736700665279,-500.0,0.00010369,2]
[348657135,1736700665289,-500.0,0.00010369,2]
[348657136,1736700665298,-625.83,0.00010369,2]
[348657137,1736700665308,-655.22,0.00010369,2]
[348657138,1736700665317,-500.0,0.00010369,2]
[348657139,1736700665327,-500.0,0.00010369,2]
[348657140,1736700665336,-500.0,0.00010369,2]
[348657141,1736700665346,-3719.64,0.00010369,2]
[348657142,1736700665355,-659.3,0.00010369,2]
[348657143,1736700665364,-500.0,0.00010369,2]
[348657144,1736700665374,-500.0,0.00010369,2]
[348657145,1736700665383,-500.0,0.00010369,2]
[348657146,1736700665392,-500.0,0.00010369,2]
[348657147,1736700665402,-500.0,0.00010369,2]
[348657148,1736700665411,-516.68,0.00010369,2]
[348657149,1736700665420,-500.0,0.00010369,2]
[348657150,1736700665430,-500.0,0.00010369,2]
[348657151,1736700665441,-500.0,0.00010369,2]
[348657152,1736700665451,-610.16,0.00010369,2]
[348657153,1736700665460,-500.0,0.00010369,2]
[348657154,1736700665470,-500.0,0.00010369,2]
[348657155,1736700665479,-544.28,0.00010369,2]
[348657156,1736700665488,-500.0,0.00010369,2]
[348657157,1736700665498,-553.68,0.00010369,2]
[348657158,1736700665507,-1214.34,0.00010369,2]
[348657159,1736700665516,-815.64,0.00010369,2]
[348657160,1736700665524,-684.62,0.00010369,2]
[348657161,1736700665534,-500.0,0.00010369,2]
[348657162,1736700665543,-932.52,0.00010369,2]
[348657163,1736700665552,-500.0,0.00010369,2]
[348657164,1736700665561,-500.0,0.00010369,2]
[348657165,1736700665570,-625.7,0.00010369,2]
[348657166,1736700665579,-500.0,0.00010369,2]
[348657167,1736700665588,-797.42,0.00010369,2]
[348657168,1736700665598,-721.16,0.00010369,2]
[348657169,1736700665607,-617.87,0.00010369,2]
[348657170,1736700665616,-500.0,0.00010369,2]
[348657171,1736700665625,-500.0,0.00010369,2]
[348657172,1736700665635,-779.4,0.00010369,2]
[348657173,1736700665644,-500.0,0.00010369,2]
[348657174,1736700665653,-500.0,0.00010369,2]
[348657175,1736700665662,-500.0,0.00010369,2]
[348657176,1736700665671,-756.66,0.00010369,2]
[348657177,1736700665681,-500.0,0.00010369,2]
[348657178,1736700665691,-527.36,0.00010369,2]
[348657179,1736700665700,-566.83,0.00010369,2]
[348657180,1736700665710,-500.0,0.00010369,2]
[348657181,1736700665719,-500.0,0.00010369,2]
[348657182,1736700665729,-507.66,0.00010369,2]
[348657183,1736700665739,-280.34,0.00010369,2]
[348657184,1736700665748,-1148.17,0.00010369,2]
[348657185,1736700665757,-500.0,0.00010369,2]
[348657186,1736700665766,-697.58,0.00010369,2]
[348657187,1736700665776,-500.0,0.00010369,2]
[348657188,1736700665785,-500.0,0.00010369,2]
[348657189,1736700665795,-640.34,0.00010369,2]
[348657190,1736700665804,-1565.32,0.00010369,2]
[348657191,1736700665813,-500.0,0.00010369,2]
[348657192,1736700665822,-500.0,0.00010369,2]
[348657193,1736700665831,-641.6,0.00010369,2]
[348657194,1736700665841,-500.0,0.00010369,2]
[348657195,1736700665850,-500.0,0.00010369,2]
[348657196,1736700665859,-673.33,0.00010369,2]
[348657197,1736700665869,-500.0,0.00010369,2]
[348657198,1736700665879,-1691.98,0.00010369,2]
[348657199,1736700665890,-500.0,0.00010369,2]
[348657200,1736700665901,-844.22,0.00010369,2]